fUST/lending_fUST_20250526
["ID","MTS","AMOUNT","RATE_DAILY","PERIOD"]
[362350679,1748209832830,-24900.0,0.00017977,2]
[362350681,1748209832839,-500.0,0.00018081,2]
[362350684,1748209832849,-272.91,0.00018123,2]
[362350686,1748209832859,-748.8636762,0.00018176,2]
[362350688,1748209832869,-207.4,0.00018565,2]
[362350690,1748209832879,-171.60950428,0.000189,2]
[362350692,1748209832888,-13138.33412431,0.000189,2]
[362350694,1748209832899,-1220.01571486,0.000189,2]
[362350696,1748209832908,-1220.01571473,0.00019107,2]
[362350698,1748209832917,-318.04,0.00019168,3]
[362350701,1748209832927,-500.0,0.00019177,2]
[362350704,1748209832937,-500.0,0.00019177,2]
[362350707,1748209832946,-601.48187352,0.00019177,2]
[362350709,1748209832956,-500.0,0.00019177,2]
[362350711,1748209832965,-395.92579994,0.00019177,2]
[362350713,1748209832976,-500.0,0.00019177,2]
[362350715,1748209832986,-364.59351012,0.00019177,2]
[362350717,1748209832995,-155.21545708,0.00019177,2]
[362350719,1748209833005,-894.64583333,0.00019178,3]
[362350721,1748209833014,-6868.3252784,0.00019178,2]
[362350723,1748209833023,-13811.89898816,0.00019178,3]
[362350725,1748209833033,-300.0,0.00019178,2]
[362350727,1748209833043,-430.0,0.00019178,2]
[362350729,1748209833052,-430.0,0.00019178,2]
[362350731,1748209833062,-500.0,0.00019178,2]
[362350734,1748209833084,-343.16591776,0.00019178,2]
[362350737,1748209833095,-500.0,0.00019178,2]
[362350739,1748209833109,-500.0,0.00019178,2]
[362350741,1748209833119,-500.0,0.00019178,2]
[362350743,1748209833129,-500.0,0.00019178,2]
[362350745,1748209833139,-500.0,0.00019178,2]
[362350747,1748209833151,-500.0,0.00019178,2]
[362350749,1748209833164,-222.32958391,0.00019178,2]
[362350751,1748209833174,-500.0,0.00019178,2]
[362350754,1748209833186,-500.0,0.00019178,2]
[362350756,1748209833196,-430.0,0.00019178,2]
[362350758,1748209833206,-430.0,0.00019178,2]
[362350760,1748209833216,-430.0,0.00019178,2]
[362350762,1748209833226,-430.0,0.00019178,2]
[362350764,1748209833236,-430.0,0.00019178,2]
[362350766,1748209833246,-401.6623163,0.00019178,2]
[362350768,1748209833255,-430.0,0.00019178,2]
[362350770,1748209833266,-400.0,0.00019178,2]
[362350772,1748209833276,-430.0,0.00019178,2]
[362350774,1748209833286,-450.0,0.00019178,2]
[362350776,1748209833296,-235.42724044,0.00019178,2]
[362350778,1748209833306,-433.4971624,0.00019178,2]
[362350780,1748209833316,-430.0,0.00019178,2]
[362350782,1748209833328,-430.0,0.00019178,2]
[362350784,1748209833338,-430.0,0.00019178,2]
[362350787,1748209833348,-430.0,0.00019178,2]
[362350789,1748209833357,-430.0,0.00019178,2]
[362350791,1748209833367,-430.0,0.00019178,2]
[362350793,1748209833377,-430.0,0.00019178,2]
[362350795,1748209833387,-400.34518435,0.00019178,2]
[362350797,1748209833397,-430.0,0.00019178,2]
[362350799,1748209833407,-402.64732013,0.00019178,2]
[362350801,1748209833417,-430.0,0.00019178,2]
[362350803,1748209833427,-430.0,0.00019178,2]
[362350805,1748209833436,-430.0,0.00019178,2]
[362350807,1748209833446,-430.0,0.00019178,2]
[362350809,1748209833456,-430.0,0.00019178,2]
[362350811,1748209833466,-430.0,0.00019178,2]
[362350813,1748209833475,-430.0,0.00019178,2]
[362350815,1748209833485,-430.0,0.00019178,2]
[362350817,1748209833495,-500.0,0.00019178,2]
[362350820,1748209833505,-500.0,0.00019178,2]
[362350822,1748209833517,-500.0,0.00019178,2]
[362350824,1748209833527,-500.0,0.00019178,2]
[362350826,1748209833537,-500.0,0.00019178,2]
[362350828,1748209833547,-500.0,0.00019178,2]
[362350830,1748209833557,-290.42540321,0.00019178,2]
[362350832,1748209833566,-400.44991057,0.00019178,2]
[362350834,1748209833577,-430.0,0.00019178,2]
[362350836,1748209833587,-262.47898113,0.00019178,2]
[362350838,1748209833597,-430.0,0.00019178,2]
[362350840,1748209833607,-430.0,0.00019178,2]
[362350843,1748209833617,-404.55519554,0.00019178,2]
[362350845,1748209833627,-430.0,0.00019178,2]
[362350846,1748209833637,-450.6961855,0.00019178,2]
[362350847,1748209833647,-430.0,0.00019178,2]
[362350848,1748209833657,-450.70483438,0.00019178,2]
[362350849,1748209833667,-430.0,0.00019178,2]
[362350850,1748209833677,-430.0,0.00019178,2]
[362350851,1748209833688,-430.0,0.00019178,2]
[362350852,1748209833698,-431.75763091,0.00019178,2]
[362350853,1748209833707,-430.0,0.00019178,2]
[362350854,1748209833717,-450.0,0.00019178,2]
[362350855,1748209833727,-430.0,0.00019178,2]
[362350856,1748209833736,-454.5639248,0.00019178,2]
[362350857,1748209833746,-431.2315797,0.00019178,2]
[362350858,1748209833755,-430.0,0.00019178,2]
[362350859,1748209833765,-453.19469808,0.00019178,2]
[362350860,1748209833775,-400.43682728,0.00019178,2]
[362350861,1748209833784,-430.0,0.00019178,2]
[362350862,1748209833795,-430.0,0.00019178,2]
[362350879,1748209834002,-450.0,0.00019178,2]
[362350881,1748209834014,-439.88605255,0.00019178,2]
[362350883,1748209834024,-430.0,0.00019178,2]
[362350885,1748209834034,-430.0,0.00019178,2]
[362350887,1748209834043,-401.17977441,0.00019178,2]
[362350889,1748209834053,-1005.61574215,0.00019178,2]
[362350891,1748209834062,-431.44566036,0.00019178,2]
[362350893,1748209834072,-430.0,0.00019178,2]
[362350895,1748209834082,-450.61126204,0.00019178,2]
[362350897,1748209834091,-430.0,0.00019178,2]
[362350900,1748209834102,-430.0,0.00019178,2]
[362350902,1748209834112,-430.0,0.00019178,2]
[362350904,1748209834123,-430.0,0.00019178,2]
[362350906,1748209834132,-453.83857874,0.00019178,2]
[362350908,1748209834142,-348.31960802,0.00019178,2]
[362350910,1748209834151,-430.0,0.00019178,2]
[362350912,1748209834161,-453.69007635,0.00019178,2]
[362350914,1748209834171,-430.0,0.00019178,2]
[362350916,1748209834180,-430.0,0.00019178,2]
[362350918,1748209834190,-520.8623758,0.00019178,2]
[362350920,1748209834201,-557.24848393,0.00019178,2]
[362350922,1748209834210,-430.0,0.00019178,2]
[362350924,1748209834219,-310.0,0.00019178,2]
[362350926,1748209834229,-430.0,0.00019178,2]
[362350928,1748209834239,-430.0,0.00019178,2]
[362350930,1748209834248,-430.0,0.00019178,2]
[362350932,1748209834258,-430.0,0.00019178,2]
[362350934,1748209834268,-430.0,0.00019178,2]
[362350936,1748209834277,-320.0,0.00019178,2]
[362350938,1748209834287,-430.0,0.00019178,2]
[362350940,1748209834297,-430.0,0.00019178,2]
[362350942,1748209834307,-529.10878307,0.00019178,2]
[362350944,1748209834316,-439.84941882,0.00019178,2]
[362350946,1748209834326,-430.0,0.00019178,2]
[362350948,1748209834336,-355.48928372,0.00019178,2]
[362350951,1748209834346,-430.0,0.00019178,2]
[362350953,1748209834356,-430.0,0.00019178,2]
[362350955,1748209834365,-430.0,0.00019178,2]
[362350957,1748209834375,-500.0,0.00019178,2]
[362350959,1748209834385,-500.0,0.00019178,2]
[362350961,1748209834394,-373.6481487,0.00019178,2]
[362350963,1748209834403,-430.0,0.00019178,2]
[362350965,1748209834413,-490.39,0.00019178,2]
[362350967,1748209834423,-430.0,0.00019178,2]
[362350969,1748209834433,-402.54833888,0.00019178,2]
[362350970,1748209834442,-430.0,0.00019178,2]
[362350972,1748209834452,-430.0,0.00019178,2]
[362350975,1748209834463,-430.0,0.00019178,2]
[362350977,1748209834473,-430.0,0.00019178,2]
[362350979,1748209834482,-430.0,0.00019178,2]
[362350981,1748209834492,-430.0,0.00019178,2]
[362350983,1748209834502,-430.0,0.00019178,2]
[362350985,1748209834511,-404.0858259,0.00019178,2]
[362350987,1748209834521,-414.60086281,0.00019178,2]
[362350989,1748209834531,-320.0,0.00019178,2]
[362350991,1748209834541,-400.12647874,0.00019178,2]
[362350993,1748209834551,-483.51507084,0.00019178,2]
[362350995,1748209834561,-430.0,0.00019178,2]
[362350997,1748209834571,-342.92169423,0.00019178,2]
[362350999,1748209834582,-430.0,0.00019178,2]
[362351001,1748209834592,-430.0,0.00019178,2]
[362351003,1748209834602,-430.0,0.00019178,2]
[362351005,1748209834612,-430.0,0.00019178,2]
[362351007,1748209834622,-390.42739517,0.00019178,2]
[362351009,1748209834632,-425.09329993,0.00019178,2]
[362351011,1748209834641,-504.98298771,0.00019178,2]
[362351013,1748209834651,-430.0,0.00019178,2]
[362351015,1748209834661,-430.0,0.00019178,2]
[362351018,1748209834670,-500.0,0.00019178,2]
[362351019,1748209834680,-500.0,0.00019178,2]
[362351022,1748209834690,-500.0,0.00019178,2]
[362351024,1748209834700,-500.0,0.00019178,2]
[362351026,1748209834709,-500.0,0.00019178,2]
[362351028,1748209834719,-500.0,0.00019178,2]
[362351030,1748209834729,-500.0,0.00019178,2]
[362351032,1748209834741,-500.0,0.00019178,2]
[362351034,1748209834751,-430.0,0.00019178,2]
[362351036,1748209834760,-438.04630413,0.00019178,2]
[362351038,1748209834771,-430.0,0.00019178,2]
[362351040,1748209834781,-430.0,0.00019178,2]
[362351042,1748209834790,-430.0,0.00019178,2]
[362351044,1748209834800,-430.0,0.00019178,2]
[362351046,1748209834810,-430.0,0.00019178,2]
[362351048,1748209834820,-450.0,0.00019178,2]
[362351050,1748209834830,-430.0,0.00019178,2]
[362351053,1748209834840,-430.0,0.00019178,2]
[362351055,1748209834850,-430.0,0.00019178,2]
[362351057,1748209834860,-430.0,0.00019178,2]
[362351059,1748209834870,-430.0,0.00019178,2]
[362351061,1748209834880,-430.0,0.00019178,2]
[362351063,1748209834890,-430.0,0.00019178,2]
[362351065,1748209834900,-430.0,0.00019178,2]
[362351067,1748209834910,-430.0,0.00019178,2]
[362351069,1748209834920,-370.0,0.00019178,2]
[362351071,1748209834930,-430.0,0.00019178,2]
[362351073,1748209834939,-430.0,0.00019178,2]
[362351075,1748209834949,-430.0,0.00019178,2]
[362351077,1748209834959,-430.0,0.00019178,2]
[362351079,1748209834969,-435.48034986,0.00019178,2]
[362351081,1748209834979,-343.20434779,0.00019178,2]
[362351083,1748209834988,-403.91097545,0.00019178,2]
[362351085,1748209834998,-430.0,0.00019178,2]
[362351087,1748209835007,-430.0,0.00019178,2]
[362351089,1748209835018,-431.40154279,0.00019178,2]
[362351091,1748209835027,-431.11679343,0.00019178,2]
[362351093,1748209835037,-430.0,0.00019178,2]
[362351095,1748209835047,-430.0,0.00019178,2]
[362351097,1748209835057,-430.0,0.00019178,2]
[362351099,1748209835066,-430.0,0.00019178,2]
[362351101,1748209835075,-430.0,0.00019178,2]
[362351103,1748209835085,-430.0,0.00019178,2]
[362351105,1748209835095,-430.0,0.00019178,2]
[362351107,1748209835104,-354.40250561,0.00019178,2]
[362351109,1748209835117,-430.0,0.00019178,2]
[362351111,1748209835127,-430.0,0.00019178,2]
[362351113,1748209835136,-430.0,0.00019178,2]
[362351115,1748209835146,-433.6077534,0.00019178,2]
[362351117,1748209835156,-430.0,0.00019178,2]
[362351119,1748209835165,-430.0,0.00019178,2]
[362351121,1748209835175,-430.0,0.00019178,2]
[362351123,1748209835185,-430.0,0.00019178,2]
[362351126,1748209835195,-430.0,0.00019178,2]
[362351128,1748209835205,-430.0,0.00019178,2]
[362351130,1748209835215,-430.0,0.00019178,2]
[362351132,1748209835225,-500.0,0.00019178,2]
[362351134,1748209835234,-430.0,0.00019178,2]
[362351136,1748209835244,-430.0,0.00019178,2]
[362351138,1748209835254,-430.0,0.00019178,2]
[362351140,1748209835263,-698.64,0.00019178,2]
[362351142,1748209835273,-430.0,0.00019178,2]
[362351144,1748209835283,-430.0,0.00019178,2]
[362351146,1748209835292,-430.0,0.00019178,2]
[362351148,1748209835302,-430.0,0.00019178,2]
[362351150,1748209835312,-430.0,0.00019178,2]
[362351152,1748209835322,-430.0,0.00019178,2]
[362351154,1748209835331,-350.0,0.00019178,2]
[362351156,1748209835341,-430.0,0.00019178,2]
[362351158,1748209835350,-450.0,0.00019178,2]
[362351160,1748209835359,-450.0,0.00019178,2]
[362351162,1748209835369,-450.0,0.00019178,2]
[362351164,1748209835378,-450.0,0.00019178,2]
[362351166,1748209835388,-430.0,0.00019178,2]
[362351168,1748209835397,-400.0,0.00019178,2]
[362351170,1748209835406,-430.0,0.00019178,2]
[362351172,1748209835416,-430.0,0.00019178,2]
[362351174,1748209835425,-430.0,0.00019178,2]
[362351176,1748209835435,-431.9115172,0.00019178,2]
[362351178,1748209835445,-430.0,0.00019178,2]
[362351180,1748209835454,-430.0,0.00019178,2]
[362351182,1748209835464,-430.0,0.00019178,2]
[362351184,1748209835473,-430.0,0.00019178,2]
[362351186,1748209835483,-430.0,0.00019178,2]
[362351188,1748209835493,-545.53966675,0.00019178,2]
[362351190,1748209835503,-430.0,0.00019178,2]
[362351192,1748209835512,-430.0,0.00019178,2]
[362351194,1748209835522,-405.68561956,0.00019178,2]
[362351196,1748209835531,-430.0,0.00019178,2]
[362351198,1748209835541,-430.34543098,0.00019178,2]
[362351201,1748209835551,-402.67606541,0.00019178,2]
[362351203,1748209835560,-601.66,0.00019178,2]
[362351205,1748209835569,-430.0,0.00019178,2]
[362351207,1748209835579,-430.0,0.00019178,2]
[362351209,1748209835589,-430.0,0.00019178,2]
[362351211,1748209835598,-430.0,0.00019178,2]
[362351213,1748209835607,-430.0,0.00019178,2]
[362351215,1748209835616,-430.0,0.00019178,2]
[362351217,1748209835626,-1364.75,0.00019178,2]
[362351219,1748209835635,-430.0,0.00019178,2]
[362351221,1748209835645,-430.0,0.00019178,2]
[362351223,1748209835654,-430.0,0.00019178,2]
[362351225,1748209835664,-430.0,0.00019178,2]
[362351227,1748209835673,-430.0,0.00019178,2]
[362351229,1748209835683,-430.0,0.00019178,2]
[362351231,1748209835693,-450.0,0.00019178,2]
[362351233,1748209835702,-430.0,0.00019178,2]
[362351235,1748209835711,-430.0,0.00019178,2]
[362351237,1748209835721,-430.0,0.00019178,2]
[362351239,1748209835731,-430.0,0.00019178,2]
[362351241,1748209835740,-430.0,0.00019178,2]
[362351243,1748209835749,-505.38,0.00019178,2]
[362351245,1748209835759,-298.066347,0.00019178,2]
[362351247,1748209835768,-430.0,0.00019178,2]
[362351249,1748209835777,-500.0,0.00019178,2]
[362351251,1748209835787,-430.0,0.00019178,2]
[362351254,1748209835797,-430.0,0.00019178,2]
[362351256,1748209835807,-298.066347,0.00019178,2]
[362351258,1748209835817,-500.0,0.00019178,2]
[362351260,1748209835827,-430.0,0.00019178,2]
[362351262,1748209835836,-701.71,0.00019178,2]
[362351264,1748209835845,-701.71,0.00019178,2]
[362351266,1748209835855,-701.71,0.00019178,2]
[362351268,1748209835865,-701.71,0.00019178,2]
[362351270,1748209835874,-400.0,0.00019178,2]
[362351272,1748209835884,-701.71,0.00019178,2]
[362351274,1748209835894,-701.71,0.00019178,2]
[362351276,1748209835903,-701.71,0.00019178,2]
[362351278,1748209835913,-701.71,0.00019178,2]
[362351280,1748209835922,-430.0,0.00019178,2]
[362351282,1748209835931,-217.18781882,0.00019178,2]
[362351284,1748209835941,-701.71,0.00019178,2]
[362351286,1748209835950,-701.71,0.00019178,2]
[362351288,1748209835959,-701.71,0.00019178,2]
[362351290,1748209835969,-430.0,0.00019178,2]
[362351292,1748209835979,-430.0,0.00019178,2]
[362351294,1748209835989,-430.0,0.00019178,2]
[362351296,1748209835998,-430.0,0.00019178,2]
[362351298,1748209836007,-430.0,0.00019178,2]
[362351300,1748209836017,-430.0,0.00019178,2]
[362351303,1748209836027,-792.67,0.00019178,2]
[362351305,1748209836036,-430.0,0.00019178,2]
[362351306,1748209836045,-555.44,0.00019178,2]
[362351309,1748209836054,-430.0,0.00019178,2]
[362351311,1748209836064,-430.0,0.00019178,2]
[362351313,1748209836074,-430.0,0.00019178,2]
[362351315,1748209836083,-430.0,0.00019178,2]
[362351317,1748209836092,-430.0,0.00019178,2]
[362351319,1748209836101,-430.0,0.00019178,2]
[362351321,1748209836112,-430.0,0.00019178,2]
[362351323,1748209836123,-430.0,0.00019178,2]
[362351325,1748209836132,-430.0,0.00019178,2]
[362351327,1748209836142,-720.58,0.00019178,2]
[362351329,1748209836151,-387.39174868,0.00019178,2]
[362351331,1748209836161,-500.34,0.00019178,2]
[362351333,1748209836171,-430.0,0.00019178,2]
[362351335,1748209836180,-430.0,0.00019178,2]
[362351337,1748209836190,-430.0,0.00019178,2]
[362351339,1748209836201,-151.0,0.00019178,2]
[362351341,1748209836211,-430.0,0.00019178,2]
[362351343,1748209836220,-430.0,0.00019178,2]
[362351345,1748209836229,-151.0,0.00019178,2]
[362351347,1748209836239,-430.0,0.00019178,2]
[362351349,1748209836248,-430.0,0.00019178,2]
[362351351,1748209836257,-430.0,0.00019178,2]
[362351353,1748209836267,-902.93,0.00019178,2]
[362351355,1748209836276,-430.0,0.00019178,2]
[362351357,1748209836286,-340.0,0.00019178,2]
[362351359,1748209836295,-430.0,0.00019178,2]
[362351361,1748209836304,-430.0,0.00019178,2]
[362351363,1748209836313,-1707.19,0.00019178,2]
[362351365,1748209836323,-430.0,0.00019178,2]
[362351367,1748209836332,-430.0,0.00019178,2]
[362351369,1748209836342,-430.0,0.00019178,2]
[362351371,1748209836351,-1069.38,0.00019178,2]
[362351373,1748209836360,-340.0,0.00019178,2]
[362351375,1748209836370,-430.0,0.00019178,2]
[362351377,1748209836379,-430.0,0.00019178,2]
[362351379,1748209836389,-430.0,0.00019178,2]
[362351381,1748209836398,-430.0,0.00019178,2]
[362351383,1748209836408,-430.0,0.00019178,2]
[362351385,1748209836418,-430.0,0.00019178,2]
[362351387,1748209836429,-430.0,0.00019178,2]
[362351390,1748209836438,-430.0,0.00019178,2]
[362351392,1748209836448,-430.0,0.00019178,2]
[362351394,1748209836458,-430.0,0.00019178,2]
[362351396,1748209836468,-430.0,0.00019178,2]
[362351398,1748209836477,-430.0,0.00019178,2]
[362351400,1748209836486,-430.0,0.00019178,2]
[362351402,1748209836496,-1743.11,0.00019178,2]
[362351404,1748209836506,-155.0,0.00019178,2]
[362351406,1748209836515,-1496.49,0.00019178,2]
[362351408,1748209836525,-430.0,0.00019178,2]
[362351410,1748209836534,-224.31,0.00019178,2]
[362351412,1748209836544,-430.0,0.00019178,2]
[362351414,1748209836553,-430.0,0.00019178,2]
[362351416,1748209836563,-430.0,0.00019178,2]
[362351418,1748209836572,-430.0,0.00019178,2]
[362351420,1748209836582,-374.484381,0.00019178,2]
[362351422,1748209836591,-430.0,0.00019178,2]
[362351424,1748209836601,-430.0,0.00019178,2]
[362351426,1748209836610,-430.0,0.00019178,2]
[362351428,1748209836619,-159.10041,0.00019178,2]
[362351430,1748209836629,-430.0,0.00019178,2]
[362351432,1748209836638,-430.0,0.00019178,2]
[362351434,1748209836648,-165.34009342,0.00019178,2]
[362351436,1748209836658,-430.0,0.00019178,2]
[362351438,1748209836668,-430.0,0.00019178,2]
[362351440,1748209836677,-679.82,0.00019178,2]
[362351442,1748209836688,-430.0,0.00019178,2]
[362351444,1748209836698,-430.0,0.00019178,2]
[362351446,1748209836708,-1117.55,0.00019178,2]
[362351448,1748209836720,-201.56117976,0.00019178,2]
[362351450,1748209836730,-518.13,0.00019178,2]
[362351452,1748209836739,-430.0,0.00019178,2]
[362351454,1748209836749,-430.0,0.00019178,2]
[362351456,1748209836758,-1233.44,0.00019178,2]
[362351458,1748209836768,-430.0,0.00019178,2]
[362351460,1748209836778,-430.0,0.00019178,2]
[362351462,1748209836787,-615.03,0.00019178,2]
[362351464,1748209836797,-430.0,0.00019178,2]
[362351466,1748209836807,-430.0,0.00019178,2]
[362351468,1748209836816,-430.0,0.00019178,2]
[362351470,1748209836825,-430.0,0.00019178,2]
[362351472,1748209836835,-430.0,0.00019178,2]
[362351474,1748209836845,-217.7444678,0.00019178,2]
[362351477,1748209836855,-151.0,0.00019205,2]
[362351478,1748209836864,-151.0,0.00019205,2]
[362351481,1748209836874,-229.13142565,0.00019242,2]
[362351483,1748209836883,-423.00916439,0.00019242,2]
[362351485,1748209836893,-160.0,0.00019242,2]
[362351487,1748209836903,-894.64583333,0.00019242,2]
[362351489,1748209836912,-160.0,0.00019242,2]
[362351491,1748209836922,-212.55626673,0.00019242,2]
[362351493,1748209836931,-160.0,0.00019242,2]
[362351495,1748209836941,-701.71,0.00019313,2]
[362351497,1748209836950,-1220.01571473,0.00019314,2]
[362351499,1748209836960,-327.49,0.00019331,2]
[362351501,1748209836970,-701.71,0.00019451,2]
[362351503,1748209836979,-701.71,0.00019451,2]
[362351505,1748209836988,-701.71,0.00019451,2]
[362351507,1748209836998,-151.0,0.00019452,2]
[362351509,1748209837007,-543.74102445,0.00019452,2]
[362351510,1748209837018,-430.0,0.00019452,2]
[362351512,1748209837028,-347.19892321,0.00019452,2]
[362351515,1748209837039,-430.0,0.00019452,2]
[362351516,1748209837049,-406.99774531,0.00019452,2]
[362351518,1748209837059,-430.0,0.00019452,2]
[362351521,1748209837068,-430.0,0.00019452,2]
[362351523,1748209837078,-430.0,0.00019452,2]
[362351525,1748209837088,-150.58430178,0.00019452,2]
[362351527,1748209837097,-436.00576966,0.00019452,2]
[362351529,1748209837106,-430.0,0.00019452,2]
[362351531,1748209837116,-430.0,0.00019452,2]
[362351533,1748209837126,-390.0,0.00019452,2]
[362351535,1748209837135,-430.0,0.00019452,2]
[362351537,1748209837145,-306.8816199,0.00019452,2]
[362351539,1748209837154,-430.0,0.00019452,2]
[362351541,1748209837163,-362.32075423,0.00019452,2]
[362351543,1748209837173,-409.15984828,0.00019452,2]
[362351545,1748209837183,-430.0,0.00019452,2]
[362351547,1748209837192,-495.49444282,0.00019452,2]
[362351549,1748209837202,-430.0,0.00019452,2]
[362351551,1748209837211,-343.64927178,0.00019452,2]
[362351553,1748209837221,-491.58174277,0.00019452,2]
[362351555,1748209837230,-430.0,0.00019452,2]
[362351557,1748209837241,-430.0,0.00019452,2]
[362351559,1748209837251,-430.0,0.00019452,2]
[362351561,1748209837260,-430.0,0.00019452,2]
[362351563,1748209837269,-430.0,0.00019452,2]
[362351565,1748209837279,-430.0,0.00019452,2]
[362351567,1748209837288,-430.0,0.00019452,2]
[362351569,1748209837298,-430.0,0.00019452,2]
[362351571,1748209837307,-435.52434879,0.00019452,2]
[362351573,1748209837317,-430.0,0.00019452,2]
[362351575,1748209837326,-430.0,0.00019452,2]
[362351577,1748209837336,-430.0,0.00019452,2]
[362351579,1748209837345,-430.0,0.00019452,2]
[362351581,1748209837356,-430.0,0.00019452,2]
[362351583,1748209837366,-430.0,0.00019452,2]
[362351585,1748209837375,-430.0,0.00019452,2]
[362351587,1748209837386,-388.08404812,0.00019452,2]
[362351589,1748209837397,-336.6361336,0.00019452,2]
[362351591,1748209837407,-345.4640596,0.00019452,2]
[362351593,1748209837417,-430.0,0.00019452,2]
[362351595,1748209837428,-434.42318492,0.00019452,2]
[362351597,1748209837438,-382.17911374,0.00019452,2]
[362351599,1748209837448,-432.22,0.00019452,2]
[362351601,1748209837458,-465.04,0.00019452,2]
[362351603,1748209837468,-430.0,0.00019452,2]
[362351606,1748209837479,-430.0,0.00019452,2]
[362351608,1748209837490,-430.0,0.00019452,2]
[362351610,1748209837500,-493.87750218,0.00019452,2]
[362351612,1748209837509,-430.0,0.00019452,2]
[362351614,1748209837519,-430.0,0.00019452,2]
[362351616,1748209837529,-430.0,0.00019452,2]
[362351618,1748209837538,-430.0,0.00019452,2]
[362351620,1748209837548,-198.67538152,0.00019452,2]
[362351622,1748209837557,-430.0,0.00019452,2]
[362351624,1748209837567,-430.0,0.00019452,2]
[362351626,1748209837576,-430.0,0.00019452,2]
[362351628,1748209837586,-430.0,0.00019452,2]
[362351630,1748209837595,-430.0,0.00019452,2]
[362351632,1748209837605,-430.0,0.00019452,2]
[362351634,1748209837614,-505.6,0.00019452,2]
[362351636,1748209837624,-155.82,0.00019452,2]
[362351638,1748209837634,-292.15838293,0.00019452,2]
[362351640,1748209837643,-430.0,0.00019452,2]
[362351642,1748209837653,-430.0,0.00019452,2]
[362351644,1748209837662,-158.1884786,0.00019452,2]
[362351646,1748209837671,-172.86308581,0.00019452,2]
[362351648,1748209837681,-430.0,0.00019452,2]
[362351650,1748209837691,-259.93989196,0.00019452,2]
[362351652,1748209837700,-430.0,0.00019452,2]
[362351661,1748209837854,-430.0,0.00019452,2]
[362351662,1748209837864,-430.0,0.00019452,2]
[362351663,1748209837874,-430.0,0.00019452,2]
[362351664,1748209837883,-698.64,0.00019452,2]
[362351665,1748209837893,-432.26426022,0.00019452,2]
[362351666,1748209837902,-430.0,0.00019452,2]
[362351667,1748209837911,-430.0,0.00019452,2]
[362351668,1748209837920,-430.0,0.00019452,2]
[362351669,1748209837930,-430.0,0.00019452,2]
[362351670,1748209837940,-430.0,0.00019452,2]
[362351671,1748209837950,-516.11634837,0.00019452,2]
[362351673,1748209837960,-430.0,0.00019452,2]
[362351675,1748209837969,-430.0,0.00019452,2]
[362351676,1748209837980,-430.0,0.00019452,2]
[362351678,1748209837991,-430.0,0.00019452,2]
[362351681,1748209838002,-601.66,0.00019452,2]
[362351683,1748209838012,-430.0,0.00019452,2]
[362351685,1748209838021,-430.0,0.00019452,2]
[362351686,1748209838031,-430.0,0.00019452,2]
[362351688,1748209838041,-430.0,0.00019452,2]
[362351690,1748209838052,-430.0,0.00019452,2]
[362351691,1748209838062,-1364.75,0.00019452,2]